fUST/lending_fUST_20241215
["ID","MTS","AMOUNT","RATE_DAILY","PERIOD"]
[345390967,1734226247595,-564.86,0.00027945,7]
[345390968,1734226247606,-500.0,0.00027945,7]
[345390969,1734226247616,-384.91445819,0.00027945,7]
[345390970,1734226247626,-500.0,0.00027945,7]
[345390971,1734226247636,-500.0,0.00027945,7]
[345390972,1734226247646,-500.0,0.00027945,7]
[345390973,1734226247656,-500.0,0.00027945,7]
[345390974,1734226247666,-500.0,0.00027945,7]
[345390975,1734226247676,-500.0,0.00027945,7]
[345390976,1734226247686,-500.0,0.00027945,7]
[345390977,1734226247697,-500.0,0.00027945,7]
[345390978,1734226247707,-500.0,0.00027945,7]
[345390979,1734226247717,-500.0,0.00027945,7]
[345390980,1734226247727,-500.0,0.00027945,7]
[345390981,1734226247738,-500.0,0.00027945,7]
[345390982,1734226247750,-500.0,0.00027945,7]
[345390983,1734226247760,-500.0,0.00027945,7]
[345390984,1734226247769,-500.0,0.00027945,7]
[345390985,1734226247780,-500.0,0.00027945,7]
[345390986,1734226247949,-500.0,0.00027945,7]
[345390987,1734226247959,-500.0,0.00027945,7]
[345390988,1734226247969,-500.0,0.00027945,7]
[345390989,1734226247978,-500.0,0.00027945,7]
[345390990,1734226247988,-500.0,0.00027945,7]
[345390991,1734226247999,-500.0,0.00027945,7]
[345390992,1734226248014,-500.0,0.00027945,7]
[345390993,1734226248025,-500.0,0.00027945,7]
[345390994,1734226248035,-500.0,0.00027945,7]
[345390995,1734226248045,-500.0,0.00027945,7]
[345390996,1734226248056,-500.0,0.00027945,7]
[345390997,1734226248073,-500.0,0.00027945,7]
[345390998,1734226248083,-500.0,0.00027945,7]
[345390999,1734226248094,-500.0,0.00027945,7]
[345391000,1734226248105,-500.0,0.00027945,7]
[345391001,1734226248115,-500.0,0.00027945,7]
[345391002,1734226248126,-500.0,0.00027945,7]
[345391003,1734226248137,-225.20047781,0.00027945,7]
[345391004,1734226248149,-500.0,0.00027945,7]
[345391005,1734226248158,-500.0,0.00027945,7]
[345391006,1734226248169,-500.0,0.00027945,7]
[345391007,1734226248178,-500.0,0.00027945,7]
[345391008,1734226248189,-500.0,0.00027945,7]
[345391009,1734226248199,-500.0,0.00027945,7]
[345391010,1734226248209,-500.0,0.00027945,7]
[345391011,1734226248219,-500.0,0.00027945,7]
[345391012,1734226248229,-500.0,0.00027945,7]
[345391013,1734226248238,-1625.08,0.00027945,7]
[345391014,1734226248249,-500.0,0.00027945,7]
[345391015,1734226248260,-500.0,0.00027945,7]
[345391016,1734226248270,-500.0,0.00027945,7]
[345391017,1734226248280,-500.0,0.00027945,7]
[345391018,1734226248290,-500.0,0.00027945,7]
[345391019,1734226248301,-500.0,0.00027945,7]
[345391020,1734226248311,-972.12,0.00027945,7]
[345391021,1734226248321,-1596.18,0.00027945,7]
[345391022,1734226248331,-500.0,0.00027945,7]
[345391023,1734226248342,-356.1,0.00027945,7]
[345391024,1734226248352,-500.0,0.00027945,7]
[345391025,1734226248362,-1040.94,0.00027945,7]
[345391026,1734226248372,-815.2,0.00027945,7]
[345391027,1734226248383,-623.1,0.00027945,7]
[345391028,1734226248393,-500.0,0.00027945,7]
[345391029,1734226248403,-500.0,0.00027945,7]
[345391030,1734226248413,-500.0,0.00027945,7]
[345391031,1734226248424,-500.0,0.00027945,7]
[345391032,1734226248434,-2179.77,0.00027945,7]
[345391033,1734226248444,-507.8200722,0.00027945,7]
[345391034,1734226248455,-507.71277896,0.00027945,7]
[345391035,1734226248464,-500.0,0.00027945,7]
[345391036,1734226248474,-500.0,0.00027945,7]
[345391037,1734226248484,-527.12930166,0.00027945,7]
[345391038,1734226248495,-500.0,0.00027945,7]
[345391039,1734226248505,-500.0,0.00027945,7]
[345391040,1734226248515,-509.03638256,0.00027945,7]
[345391041,1734226248525,-500.0,0.00027973,5]
[345391042,1734226248535,-500.0,0.00027973,5]
[345391043,1734226248544,-503.14471307,0.00027973,5]
[345391044,1734226248554,-2215.49157837,0.00028164,2]
[345391045,1734226248564,-500.0,0.00028219,7]
[345391046,1734226248574,-293.83,0.00028219,7]
[345391047,1734226248584,-500.0,0.00028219,7]
[345391048,1734226248593,-500.0,0.00028219,7]
[345391049,1734226248603,-500.0,0.00028219,7]
[345391050,1734226248612,-500.0,0.00028219,7]
[345391051,1734226248622,-500.0,0.00028219,7]
[345391052,1734226248631,-500.0,0.00028219,7]
[345391053,1734226248641,-500.0,0.00028219,7]
[345391054,1734226248651,-500.0,0.00028219,7]
[345391055,1734226248660,-611.39919737,0.00028219,7]
[345391056,1734226248671,-500.0,0.00028219,7]
[345391057,1734226248680,-500.0,0.00028219,7]
[345391058,1734226248690,-500.0,0.00028219,7]
[345391059,1734226248701,-500.0,0.00028219,7]
[345391060,1734226248710,-500.0,0.00028219,7]
[345391061,1734226248720,-501.55,0.00028219,7]
[345391062,1734226248730,-456.96,0.00028219,7]
[345391063,1734226248740,-500.0,0.00028219,7]
[345391064,1734226248756,-500.0,0.00028219,7]
[345391065,1734226248766,-595.36,0.00028219,7]
[345391066,1734226248776,-732.18,0.00028219,7]
[345391067,1734226248785,-500.0,0.00028219,7]
[345391068,1734226248795,-500.0,0.00028219,7]
[345391069,1734226248804,-500.0,0.00028219,7]
[345391070,1734226248814,-500.0,0.00028219,7]
[345391071,1734226248823,-500.0,0.00028219,7]
[345391072,1734226248833,-500.0,0.00028219,7]
[345391073,1734226248843,-500.0,0.00028219,7]
[345391074,1734226248852,-500.0,0.00028219,7]
[345391075,1734226248863,-500.0,0.00028219,7]
[345391076,1734226248873,-500.0,0.00028219,7]
[345391077,1734226248882,-500.0,0.00028219,7]
[345391078,1734226248892,-500.0,0.00028219,7]
[345391079,1734226248902,-500.0,0.00028219,7]
[345391080,1734226248911,-500.0,0.00028219,7]
[345391081,1734226248921,-500.0,0.00028219,7]
[345391082,1734226248931,-500.0,0.00028219,7]
[345391083,1734226248940,-500.0,0.00028219,7]
[345391084,1734226248950,-500.0,0.00028219,7]
[345391085,1734226248960,-500.0,0.00028219,7]
[345391086,1734226248970,-500.0,0.00028219,7]
[345391087,1734226248980,-503.3550721,0.00028219,7]
[345391088,1734226248990,-503.77920918,0.00028219,7]
[345391089,1734226249000,-505.52,0.00028219,7]
[345391090,1734226249011,-500.0,0.00028219,7]
[345391091,1734226249021,-500.0,0.00028219,7]
[345391092,1734226249030,-500.0,0.00028219,7]
[345391093,1734226249040,-500.0,0.00028219,7]
[345391094,1734226249054,-564.86,0.00028219,7]
[345391095,1734226249064,-500.0,0.00028219,7]
[345391096,1734226249074,-500.0,0.00028219,7]
[345391097,1734226249084,-500.0,0.00028219,7]
[345391098,1734226249096,-500.0,0.00028219,7]
[345391099,1734226249106,-553.07718341,0.00028219,7]
[345391100,1734226249115,-500.0,0.00028219,7]
[345391101,1734226249127,-500.0,0.00028219,7]
[345391102,1734226249138,-500.0,0.00028219,7]
[345391103,1734226249148,-500.0,0.00028219,7]
[345391104,1734226249158,-500.0,0.00028219,7]
[345391105,1734226249168,-500.0,0.00028219,7]
[345391106,1734226249178,-500.0,0.00028219,7]
[345391107,1734226249188,-500.0,0.00028219,7]
[345391108,1734226249198,-500.0,0.00028219,7]
[345391109,1734226249207,-500.0,0.00028219,7]
[345391110,1734226249218,-542.6,0.00028219,7]
[345391111,1734226249228,-500.0,0.00028219,7]
[345391112,1734226249238,-500.0,0.00028219,7]
[345391113,1734226249249,-500.0,0.00028219,7]
[345391114,1734226249259,-500.0,0.00028219,7]
[345391115,1734226249269,-500.0,0.00028219,7]
[345391116,1734226249279,-500.0,0.00028219,7]
[345391117,1734226249290,-500.0,0.00028219,7]
[345391118,1734226249300,-346.0385697,0.00028219,7]
[345391119,1734226249311,-254.62,0.00028219,7]
[345391120,1734226249321,-500.0,0.00028219,7]
[345391121,1734226249332,-500.0,0.00028219,7]
[345391122,1734226249344,-500.0,0.00028219,7]
[345391123,1734226249354,-500.0,0.00028219,7]
[345391124,1734226249369,-503.7,0.00028219,7]
[345391125,1734226249379,-500.0,0.00028219,7]
[345391126,1734226249389,-500.0,0.00028219,7]
[345391127,1734226249398,-500.0,0.00028219,7]
[345391128,1734226249408,-633.9825896,0.00028219,7]
[345391129,1734226249418,-500.0,0.00028219,7]
[345391130,1734226249428,-1625.08,0.00028219,7]
[345391131,1734226249438,-500.0,0.00028219,7]
[345391132,1734226249448,-500.0,0.00028219,7]
[345391133,1734226249458,-972.12,0.00028219,7]
[345391134,1734226249469,-1596.18,0.00028219,7]
[345391135,1734226249479,-500.0,0.00028219,7]
[345391136,1734226249489,-500.0,0.00028219,7]
[345391137,1734226249501,-1040.94,0.00028219,7]
[345391138,1734226249511,-815.2,0.00028219,7]
[345391139,1734226249523,-618.34898192,0.00028219,7]
[345391140,1734226249533,-500.0,0.00028219,7]
[345391141,1734226249544,-500.0,0.00028219,7]
[345391142,1734226249554,-2179.77,0.00028219,7]
[345391143,1734226249564,-500.0,0.00028219,7]
[345391144,1734226249574,-500.0,0.00028219,7]
[345391145,1734226249584,-500.0,0.00028219,7]
[345391146,1734226249593,-500.0,0.00028219,7]
[345391147,1734226249604,-71007.97363251,0.00028337,2]
[345391148,1734226249613,-151.0,0.00028362,6]
[345391149,1734226249623,-500.0,0.00028373,5]
[345391150,1734226249632,-151.0,0.000284,18]
[345391151,1734226249643,-158.61,0.000284,31]
[345391152,1734226249653,-158.61,0.000284,31]
[345391153,1734226249662,-158.61,0.000284,31]
[345391154,1734226249672,-587.0,0.00028417,2]
[345391155,1734226249682,-500.0,0.00028493,7]
[345391156,1734226249691,-500.0,0.00028493,7]
[345391157,1734226249701,-633.63122892,0.00028493,7]
[345391158,1734226249711,-500.0,0.00028493,7]
[345391159,1734226249721,-500.0,0.00028493,7]
[345391160,1734226249731,-500.0,0.00028493,7]
[345391161,1734226249740,-500.0,0.00028493,7]
[345391162,1734226249750,-500.0,0.00028493,7]
[345391163,1734226249760,-617.2,0.00028493,7]
[345391164,1734226249770,-411.61,0.00028493,7]
[345391165,1734226249779,-500.0,0.00028493,7]
[345391166,1734226249789,-500.0,0.00028493,7]
[345391167,1734226249799,-500.0,0.00028493,7]
[345391168,1734226249809,-500.0,0.00028493,7]
[345391169,1734226249820,-500.0,0.00028493,7]
[345391170,1734226249830,-500.0,0.00028493,7]
[345391171,1734226249839,-732.18,0.00028493,7]
[345391172,1734226249849,-416.4,0.00028493,7]
[345391173,1734226249859,-500.0,0.00028493,7]
[345391174,1734226249868,-522.2613077,0.00028493,7]
[345391175,1734226249878,-500.0,0.00028493,7]
[345391176,1734226249888,-500.0,0.00028493,7]
[345391177,1734226249898,-500.0,0.00028493,7]
[345391178,1734226249908,-500.0,0.00028493,7]
[345391179,1734226249918,-456.3,0.00028493,7]
[345391180,1734226249928,-500.0,0.00028493,7]
[345391181,1734226249938,-500.0,0.00028493,7]
[345391182,1734226249947,-500.0,0.00028493,7]
[345391183,1734226249956,-500.0,0.00028493,7]
[345391184,1734226249966,-500.0,0.00028493,7]
[345391185,1734226249976,-500.0,0.00028493,7]
[345391186,1734226249985,-500.0,0.00028493,7]
[345391187,1734226249996,-500.0,0.00028493,7]
[345391188,1734226250006,-500.0,0.00028493,7]
[345391189,1734226250016,-500.0,0.00028493,7]
[345391190,1734226250025,-500.0,0.00028493,7]
[345391191,1734226250036,-500.0,0.00028493,7]
[345391192,1734226250045,-500.0,0.00028493,7]
[345391193,1734226250058,-500.0,0.00028493,7]
[345391194,1734226250068,-500.0,0.00028493,7]
[345391195,1734226250078,-500.0,0.00028493,7]
[345391196,1734226250087,-564.86,0.00028493,7]
[345391197,1734226250098,-500.0,0.00028493,7]
[345391198,1734226250108,-500.0,0.00028493,7]
[345391199,1734226250118,-500.0,0.00028493,7]
[345391200,1734226250129,-500.0,0.00028493,7]
[345391201,1734226250139,-625.80483645,0.00028493,7]
[345391202,1734226250148,-500.0,0.00028493,7]
[345391203,1734226250158,-500.0,0.00028493,7]
[345391204,1734226250168,-500.0,0.00028493,7]
[345391205,1734226250178,-500.0,0.00028493,7]
[345391206,1734226250187,-500.0,0.00028493,7]
[345391207,1734226250197,-500.0,0.00028493,7]
[345391208,1734226250206,-615.36,0.00028493,7]
[345391209,1734226250217,-500.0,0.00028493,7]
[345391210,1734226250227,-500.0,0.00028493,7]
[345391211,1734226250237,-500.0,0.00028493,7]
[345391212,1734226250248,-500.0,0.00028493,7]
[345391213,1734226250258,-603.04,0.00028493,7]
[345391214,1734226250268,-500.0,0.00028493,7]
[345391215,1734226250278,-500.0,0.00028493,7]
[345391216,1734226250288,-500.0,0.00028493,7]
[345391217,1734226250298,-500.0,0.00028493,7]
[345391218,1734226250307,-500.0,0.00028493,7]
[345391219,1734226250318,-500.0,0.00028493,7]
[345391220,1734226250327,-467.35,0.00028493,7]
[345391221,1734226250338,-500.0,0.00028493,7]
[345391222,1734226250347,-500.0,0.00028493,7]
[345391223,1734226250356,-282.12099869,0.00028493,7]
[345391224,1734226250366,-500.0,0.00028493,7]
[345391225,1734226250376,-1625.08,0.00028493,7]
[345391226,1734226250386,-584.19,0.00028493,7]
[345391227,1734226250396,-533.98,0.00028493,7]
[345391228,1734226250405,-972.12,0.00028493,7]
[345391229,1734226250415,-1596.18,0.00028493,7]
[345391230,1734226250424,-500.0,0.00028493,7]
[345391231,1734226250434,-500.0,0.00028493,7]
[345391232,1734226250444,-815.2,0.00028493,7]
[345391233,1734226250453,-1040.94,0.00028493,7]
[345391234,1734226250463,-500.0,0.00028493,7]
[345391235,1734226250475,-500.0,0.00028493,7]
[345391236,1734226250484,-2179.77,0.00028493,7]
[345391237,1734226250494,-500.0,0.00028493,7]
[345391238,1734226250503,-500.0,0.00028493,7]
[345391239,1734226250512,-500.0,0.00028493,7]
[345391240,1734226250522,-500.0,0.00028493,7]
[345391241,1734226250531,-151.12445724,0.00028499,2]
[345391242,1734226250540,-1306237.20972483,0.000285,2]
[345391243,1734226250760,-22605.96552866,0.000285,2]
[345391244,1734226250804,-503.67932727,0.00027397,7]
[345391245,1734226250814,-120344.8152351,0.000285,2]
[345391246,1734226251020,-181.858,0.00026912,2]
[345391247,1734226251029,-500.0,0.00027397,7]
[345391248,1734226251039,-524.43633451,0.00027397,7]
[345391249,1734226251049,-509.18815132,0.00027397,7]
[345391250,1734226251062,-500.0,0.00027397,7]
[345391251,1734226251072,-509.6652364,0.00027397,7]
[345391252,1734226251083,-532.09131499,0.00027671,7]
[345391253,1734226251092,-500.0,0.00027671,7]
[345391254,1734226251103,-500.0,0.00027945,7]
[345391255,1734226251113,-293.41119617,0.00028219,7]
[345391256,1734226251123,-62.04600661,0.000284,31]
[345391257,1734226251136,-96.56399339,0.000284,31]
[345391258,1734226251146,-19519.76787298,0.000285,2]
[345391273,1734226730583,166.240818,0.00013973,2]
[345391348,1734227432625,-2448.73055508,0.00025502,2]
[345391349,1734227432635,-180.051639,0.0002602,2]
[345391350,1734227432645,-213.9054965,0.00026094,2]
[345391351,1734227432655,-167.0,0.00026292,3]
[345391352,1734227432665,-167.0,0.00026292,3]
[345391353,1734227432675,-167.0,0.00026292,3]
[345391354,1734227432685,-167.0,0.00026292,3]
[345391355,1734227432695,-167.0,0.00026292,3]
[345391356,1734227432709,-167.0,0.00026292,3]
[345391357,1734227432719,-168.0,0.00026292,3]
[345391358,1734227432728,-660.0,0.00026384,2]
[345391359,1734227432738,-150.118806,0.000265,2]
[345391360,1734227432751,-166.0,0.00027,2]
[345391361,1734227432761,-430.253,0.0002707,2]
[345391362,1734227432770,-300.0,0.00027394,2]
[345391363,1734227432781,-300.0,0.00027395,2]
[345391364,1734227432791,-500.0,0.00027396,2]
[345391365,1734227432801,-500.0,0.00027396,2]
[345391366,1734227432811,-500.0,0.00027396,2]
[345391367,1734227432822,-555.81207682,0.00027396,2]
[345391368,1734227432831,-289.52721936,0.00027396,2]
[345391369,1734227432841,-500.0,0.00027396,2]
[345391370,1734227432851,-500.0,0.00027396,2]
[345391371,1734227432860,-500.0,0.00027396,2]
[345391372,1734227432881,-500.0,0.00027396,2]
[345391373,1734227432890,-500.0,0.00027397,7]
[345391374,1734227432899,-629.22,0.00027397,7]
[345391375,1734227432908,-514.58453641,0.00027397,7]
[345391376,1734227432918,-500.0,0.00027397,7]
[345391377,1734227432928,-424.86035152,0.00027397,7]
[345391378,1734227432938,-502.05961892,0.00027397,7]
[345391379,1734227432947,-506.61911136,0.00027397,7]
[345391380,1734227432957,-504.73994391,0.00027397,7]
[345391381,1734227432966,-506.06460643,0.00027397,7]
[345391382,1734227432976,-504.47533994,0.00027397,7]
[345391383,1734227432986,-502.55889997,0.00027397,7]
[345391384,1734227432996,-500.0,0.00027397,7]
[345391385,1734227433006,-501.8824473,0.00027397,7]
[345391386,1734227433016,-502.23247828,0.00027397,7]
[345391387,1734227433025,-503.52184746,0.00027397,7]
[345391388,1734227433035,-504.19764883,0.00027397,7]
[345391389,1734227433045,-502.3401403,0.00027397,7]
[345391390,1734227433055,-506.98033068,0.00027397,7]
[345391391,1734227433065,-502.54997753,0.00027397,7]
[345391392,1734227433075,-503.54074614,0.00027397,7]
[345391393,1734227433084,-500.0,0.00027397,7]
[345391394,1734227433094,-502.81997587,0.00027397,7]
[345391395,1734227433104,-500.0,0.00027397,7]
[345391396,1734227433117,-502.58900798,0.00027397,7]
[345391397,1734227433129,-504.94068804,0.00027397,7]
[345391398,1734227433139,-506.27399081,0.00027397,7]
[345391399,1734227433149,-503.32613427,0.00027397,7]
[345391400,1734227433159,-503.8528322,0.00027397,7]
[345391401,1734227433170,-500.0,0.00027397,7]
[345391402,1734227433179,-500.0,0.00027397,7]
[345391403,1734227433189,-502.79024133,0.00027397,7]
[345391404,1734227433200,-503.00558007,0.00027397,7]
[345391405,1734227433210,-500.0,0.00027397,7]
[345391406,1734227433219,-500.0,0.00027397,7]
[345391407,1734227433229,-502.77353945,0.00027397,7]
[345391408,1734227433239,-503.62515965,0.00027397,7]
[345391409,1734227433248,-504.20593818,0.00027397,7]
[345391410,1734227433259,-502.46185151,0.00027397,7]
[345391411,1734227433269,-501.86623145,0.00027397,7]
[345391412,1734227433279,-501.72888289,0.00027397,7]
[345391413,1734227433289,-507.49284328,0.00027397,7]
[345391414,1734227433300,-500.0,0.00027397,7]
[345391415,1734227433310,-500.0,0.00027397,7]
[345391416,1734227433320,-502.41934807,0.00027397,7]
[345391417,1734227433330,-500.0,0.00027397,7]
[345391418,1734227433340,-500.0,0.00027397,7]
[345391419,1734227433350,-500.0,0.00027397,7]
[345391420,1734227433360,-500.0,0.00027397,7]
[345391421,1734227433374,-504.09773544,0.00027397,7]
[345391422,1734227433383,-505.18366613,0.00027397,7]
[345391423,1734227433393,-505.61860083,0.00027397,7]
[345391424,1734227433402,-61.02501364,0.00027397,7]
[345391425,1734227433416,-511.98628008,0.00027397,7]
[345391426,1734227433426,-500.0,0.00027397,7]
[345391427,1734227433435,-502.04457929,0.00027397,7]
[345391428,1734227433444,-500.0,0.00027397,7]
[345391429,1734227433454,-502.66798223,0.00027397,7]
[345391430,1734227433464,-502.06890124,0.00027397,7]
[345391431,1734227433473,-543.6955434,0.00027397,7]
[345391432,1734227433483,-502.93087393,0.00027397,7]
[345391433,1734227433493,-503.32686285,0.00027397,7]
[345391434,1734227433502,-500.0,0.00027397,7]
[345391435,1734227433512,-22.25311302,0.00027397,7]
[345391498,1734227438714,-609.6457112,0.00027397,7]
[345391500,1734227438724,-500.0,0.00027397,7]
[345391502,1734227438735,-28.78637112,0.00027397,7]
[345391504,1734227438748,-476.03274814,0.00027397,7]
[345391506,1734227438758,-500.0,0.00027397,7]
[345391508,1734227438767,-506.50975542,0.00027397,7]
[345391510,1734227438776,-502.63971514,0.00027397,7]
[345391512,1734227438787,-504.84331933,0.00027397,7]
[345391514,1734227438797,-509.71579451,0.00027397,7]
[345391516,1734227438807,-507.18900445,0.00027397,7]
[345391518,1734227438816,-500.0,0.00027397,7]
[345391520,1734227438826,-502.33764333,0.00027397,7]
[345391522,1734227438836,-503.50592378,0.00027397,7]
[345391524,1734227438845,-500.0,0.00027397,7]
[345391525,1734227438854,-500.0,0.00027397,7]
[345391526,1734227438865,-500.0,0.00027397,7]
[345391527,1734227438878,-501.50001376,0.00027397,7]
[345391529,1734227438888,-503.3727709,0.00027397,7]
[345391530,1734227438898,-502.61441586,0.00027397,7]
[345391532,1734227438908,-505.47956177,0.00027397,7]
[345391534,1734227438917,-502.51004243,0.00027397,7]
[345391536,1734227438927,-504.39226044,0.00027397,7]
[345391538,1734227438938,-500.0,0.00027397,7]
[345391540,1734227438947,-500.0,0.00027397,7]
[345391542,1734227438956,-500.0,0.00027397,7]
[345391544,1734227438966,-500.68702546,0.00027397,7]
[345391546,1734227438977,-502.88776599,0.00027397,7]
[345391548,1734227438988,-500.0,0.00027397,7]
[345391550,1734227438997,-500.0,0.00027397,7]
[345391552,1734227439007,-500.0,0.00027397,7]
[345391554,1734227439017,-500.0,0.00027397,7]
[345391556,1734227439028,-503.64496815,0.00027397,7]
[345391558,1734227439038,-512.20101014,0.00027397,7]
[345391560,1734227439048,-503.12559886,0.00027397,7]
[345391562,1734227439058,-519.26731939,0.00027397,7]
[345391564,1734227439067,-537.08920007,0.00027397,7]
[345391565,1734227439076,-500.0,0.00027397,7]
[345391567,1734227439085,-506.00672903,0.00027397,7]
[345391569,1734227439095,-524.27017214,0.00027397,7]
[345391571,1734227439104,-500.0,0.00027397,7]
[345391573,1734227439113,-504.65213609,0.00027397,7]
[345391575,1734227439125,-521.81389354,0.00027397,7]
[345391577,1734227439134,-500.55960753,0.00027397,7]
[345391579,1734227439144,-500.0,0.00027397,7]
[345391581,1734227439154,-500.0,0.00027397,7]
[345391583,1734227439164,-500.0,0.00027397,7]
[345391585,1734227439174,-500.0,0.00027397,7]
[345391587,1734227439185,-502.79062648,0.00027397,7]
[345391589,1734227439197,-504.44415149,0.00027397,7]
[345391591,1734227439207,-504.37228772,0.00027397,7]
[345391593,1734227439217,-519.57580214,0.00027397,7]
[345391595,1734227439227,-500.0,0.00027397,7]
[345391597,1734227439237,-507.06336241,0.00027397,7]
[345391598,1734227439247,-502.30302628,0.00027397,7]
[345391599,1734227439257,-507.30702761,0.00027397,7]
[345391600,1734227439267,-504.03067942,0.00027397,7]
[345391601,1734227439277,-500.0,0.00027397,7]
[345391602,1734227439286,-503.49195445,0.00027397,7]
[345391603,1734227439295,-509.11795762,0.00027397,7]
[345391604,1734227439305,-504.95122994,0.00027397,7]
[345391605,1734227439315,-502.74338915,0.00027397,7]
[345391606,1734227439324,-500.0,0.00027397,7]
[345391607,1734227439334,-508.08997649,0.00027397,7]
[345391608,1734227439343,-500.0,0.00027397,7]
[345391609,1734227439355,-505.82869701,0.00027397,7]
[345391610,1734227439364,-500.0,0.00027397,7]
[345391611,1734227439377,-502.61299948,0.00027397,7]
[345391612,1734227439387,-500.0,0.00027397,7]
[345391613,1734227439397,-500.0,0.00027397,7]
[345391614,1734227439407,-513.33367369,0.00027397,7]
[345391615,1734227439417,-503.33863158,0.00027397,7]
[345391616,1734227439427,-500.0,0.00027397,7]
[345391617,1734227439436,-500.0,0.00027397,7]
[345391618,1734227439447,-503.08212743,0.00027397,7]
[345391619,1734227439456,-500.0,0.00027397,7]
[345391620,1734227439466,-500.0,0.00027397,7]
[345391621,1734227439476,-500.0,0.00027397,7]
[345391622,1734227439488,-502.78393663,0.00027397,7]
[345391623,1734227439497,-504.37146123,0.00027397,7]
[345391624,1734227439507,-507.29863119,0.00027397,7]
[345391625,1734227439517,-502.31651675,0.00027397,7]
[345391626,1734227439526,-512.04763788,0.00027397,7]
[345391627,1734227439536,-500.0,0.00027397,7]
[345391628,1734227439546,-501.84568124,0.00027397,7]
[345391629,1734227439557,-500.0,0.00027397,7]
[345391630,1734227439567,-502.65020825,0.00027397,7]
[345391631,1734227439577,-502.67299302,0.00027397,7]
[345391632,1734227439587,-503.07740265,0.00027397,7]
[345391633,1734227439597,-502.12909287,0.00027397,7]
[345391634,1734227439607,-506.69690236,0.00027397,7]
[345391635,1734227439617,-504.50896554,0.00027397,7]
[345391636,1734227439631,-502.98046203,0.00027397,7]
[345391637,1734227439641,-503.23839406,0.00027397,7]
[345391638,1734227439651,-500.0,0.00027397,7]
[345391639,1734227439663,-502.07535608,0.00027397,7]
[345391640,1734227439674,-500.0,0.00027397,7]
[345391641,1734227439684,-502.07346321,0.00027397,7]
[345391642,1734227439695,-502.62949885,0.00027397,7]
[345391643,1734227439709,-500.0,0.00027397,7]
[345391644,1734227439719,-503.00526049,0.00027397,7]
[345391645,1734227439729,-503.43761496,0.00027397,7]
[345391646,1734227439741,-500.0,0.00027397,7]
[345391647,1734227439751,-502.44484109,0.00027397,7]
[345391648,1734227439761,-502.87951586,0.00027397,7]
[345391649,1734227439771,-500.0,0.00027397,7]
[345391650,1734227439782,-500.0,0.00027397,7]
[345391651,1734227439793,-500.0,0.00027397,7]
[345391652,1734227439803,-500.0,0.00027397,7]
[345391653,1734227439813,-500.0,0.00027397,7]
[345391654,1734227439823,-511.38631641,0.00027397,7]
[345391655,1734227439833,-503.76481298,0.00027397,7]
[345391656,1734227439844,-502.29684038,0.00027397,7]
[345391657,1734227439854,-500.0,0.00027397,7]
[345391658,1734227439864,-506.18536636,0.00027397,7]
[345391659,1734227439879,-503.47907222,0.00027397,7]
[345391660,1734227439889,-502.41055972,0.00027397,7]
[345391661,1734227439899,-505.98032953,0.00027397,7]
[345391662,1734227439909,-500.0,0.00027397,7]
[345391663,1734227439918,-504.83056103,0.00027397,7]